fUSD/lending_fUSD_20250820
["ID","MTS","AMOUNT","RATE_DAILY","PERIOD"]
[380323893,1755678635997,-500.0,0.00010869,2]
[380323894,1755678636006,-500.0,0.00010869,2]
[380323895,1755678636016,-500.0,0.00010869,2]
[380323896,1755678636025,-500.0,0.00010869,2]
[380323897,1755678636034,-500.0,0.00010869,2]
[380323898,1755678636044,-500.0,0.00010869,2]
[380323899,1755678636053,-500.0,0.00010869,2]
[380323900,1755678636062,-500.0,0.00010869,2]
[380323901,1755678636071,-500.0,0.00010869,2]
[380323902,1755678636081,-500.0,0.00010869,2]
[380323903,1755678636091,-290.37097899,0.00010869,2]
[380323904,1755678636100,-166.94878602,0.000109,2]
[380323905,1755678636110,-208.29732471,0.000109,2]
[380323906,1755678636120,-17692.01,0.00010937,2]
[380323907,1755678636131,-200.52899506,0.00010999,2]
[380323908,1755678636141,-500.0,0.00010999,2]
[380323909,1755678636150,-500.0,0.00010999,2]
[380323910,1755678636160,-500.0,0.00010999,2]
[380323911,1755678636170,-327.49885668,0.00010999,2]
[380323912,1755678636179,-472.2421265,0.00010999,2]
[380323913,1755678636188,-500.0,0.00010999,2]
[380323914,1755678636198,-395.74236929,0.00010999,2]
[380323915,1755678636211,-104.25763071,0.00010999,2]
[380323916,1755678636221,-270.44697406,0.00010999,2]
[380323917,1755678636230,-232.97833823,0.00010999,2]
[380323925,1755678637633,-18.54149163,0.00010999,2]
[380323926,1755678637642,-500.0,0.00010999,2]
[380323927,1755678637651,-500.0,0.00010999,2]
[380323928,1755678637660,-500.0,0.00010999,2]
[380323929,1755678637670,-500.0,0.00010999,2]
[380323930,1755678637679,-302.3738397,0.00010999,2]
[380323931,1755678637688,-168.33654458,0.00010999,2]
[380323932,1755678637697,-1084.24578383,0.00011,2]
[380323933,1755678637708,-4750.37,0.00011,2]
[380323934,1755678637815,-7572.79617005,0.00011,2]
[380323935,1755678637829,-760.461751,0.00011,2]
[380323936,1755678637843,-26065.84647648,0.00011,2]
[380323937,1755678637864,-487.39284,0.00011,2]
[380323938,1755678637876,-4009.88531421,0.00011,2]
[380323939,1755678637889,-1994.49661486,0.00011,2]
[380323940,1755678637915,-362.78420286,0.00011,2]
[380323942,1755678637927,-175593.74110373,0.00011,2]
[380323943,1755678637940,-5486.90399785,0.00011,2]
[380324111,1755678639682,-8394.39521922,0.00011,2]
[380324113,1755678639693,-6001.864064,0.00011,2]
[380324125,1755678639794,-1641.18661137,0.00011,2]
[380324132,1755678639853,-1553.73338953,0.00011,2]
[380324135,1755678639864,-419.77238971,0.00011,2]
[380324137,1755678639876,-6420.04424506,0.00011,2]
[380324139,1755678639887,-655.28295906,0.00011,2]
[380324440,1755678642744,-634.7677259,0.00011,2]
[380324442,1755678642757,-22878.32819023,0.00011,2]
[380324445,1755678642769,-1536.99864395,0.00011,2]
[380324455,1755678642854,-1665.15916738,0.00011,2]
[380324457,1755678642866,-4346.05379924,0.00011,2]
[380324463,1755678642910,-843799.9031116,0.00011,2]
[380324465,1755678642920,-14276.57,0.00011,2]
[380324467,1755678642930,-456876.40033159,0.00011,2]
[380324469,1755678642939,-15501.15364225,0.00011063,2]
[380324471,1755678642949,-150.0,0.00011098,2]
[380324473,1755678642958,-2449.58338464,0.00011098,2]
[380324475,1755678642968,-150.0,0.00011098,2]
[380324477,1755678642977,-582.22296242,0.00011098,2]
[380324479,1755678642987,-150.0,0.00011098,2]
[380324481,1755678642997,-5641.3549804,0.00011098,2]
[380324483,1755678643007,-150.0,0.00011098,2]
[380324485,1755678643018,-4070.10419888,0.00011098,2]
[380324487,1755678643028,-4077.79,0.00011098,2]
[380324489,1755678643037,-2050.45,0.00011098,2]
[380324491,1755678643047,-11328.63432539,0.00011099,2]
[380324494,1755678643057,-57193.7913126,0.00011099,2]
[380324496,1755678643067,-1000.0,0.00011108,2]
[380324498,1755678643076,-322.6107,0.00011152,2]
[380324500,1755678643086,-160.0,0.00011152,2]
[380324502,1755678643095,-277.35679052,0.00011152,2]
[380324504,1755678643106,-151.0,0.00011152,2]
[380324506,1755678643116,-915.35737025,0.00011158,2]
[380324508,1755678643126,-451.897,0.00011159,2]
[380324510,1755678643136,-894.0,0.00011159,2]
[380324512,1755678643146,-4152.0,0.00011159,2]
[380324514,1755678643155,-2030.0,0.00011159,2]
[380324516,1755678643165,-1255.0,0.00011159,2]
[380324518,1755678643174,-1500.0,0.00011196,2]
[380324520,1755678643184,-296.71,0.00011236,2]
[380324523,1755678643193,-156.82,0.00011268,2]
[380324525,1755678643203,-1308.75,0.00011277,2]
[380324527,1755678643212,-156.82,0.00011288,2]
[380324529,1755678643221,-169.3,0.00011296,2]
[380324531,1755678643230,-156.82,0.00011308,2]
[380324533,1755678643240,-156.82,0.00011328,2]
[380324535,1755678643249,-156.82,0.00011348,2]
[380324537,1755678643258,-156.82,0.00011368,2]
[380324539,1755678643267,-156.82,0.00011388,2]
[380324541,1755678643277,-5000.0,0.000114,2]
[380324543,1755678643285,-156.82,0.00011408,2]
[380324545,1755678643295,-156.82,0.00011428,2]
[380324547,1755678643304,-380.0,0.000115,2]
[380324549,1755678643314,-777.0,0.000115,2]
[380324551,1755678643324,-785.0,0.000115,2]
[380324553,1755678643333,-2751.0,0.00011507,2]
[380324555,1755678643343,-500.0,0.00011507,2]
[380324557,1755678643352,-500.0,0.00011507,2]
[380324558,1755678643361,-500.0,0.00011507,2]
[380324559,1755678643370,-500.0,0.00011507,2]
[380324560,1755678643379,-500.0,0.00011507,2]
[380324561,1755678643388,-500.0,0.00011507,2]
[380324562,1755678643398,-500.0,0.00011507,2]
[380324563,1755678643409,-500.0,0.00011507,2]
[380324564,1755678643419,-500.0,0.00011507,2]
[380324565,1755678643428,-500.0,0.00011507,2]
[380324566,1755678643437,-500.0,0.00011507,2]
[380324567,1755678643447,-500.0,0.00011507,2]
[380324569,1755678643456,-500.0,0.00011507,2]
[380324571,1755678643466,-57193.79131256,0.00011678,2]
[380324574,1755678643476,-500.0,0.0001172,2]
[380324575,1755678643485,-500.0,0.0001172,2]
[380324578,1755678643494,-500.20349937,0.0001172,2]
[380324580,1755678643504,-11328.6343253,0.00011762,2]
[380324582,1755678643513,-170.54,0.00011823,2]
[380324584,1755678643522,-250.0,0.00011852,2]
[380324586,1755678643531,-255.0,0.00011911,2]
[380324588,1755678643541,-420.0,0.00011944,2]
[380324590,1755678643551,-500.0,0.00011955,2]
[380324592,1755678643561,-500.0,0.00011955,2]
[380324594,1755678643570,-500.0,0.00011955,2]
[380324596,1755678643580,-500.0,0.00011955,2]
[380324598,1755678643590,-500.0,0.00011955,2]
[380324600,1755678643599,-500.0,0.00011955,2]
[380324602,1755678643608,-500.0,0.00011955,2]
[380324604,1755678643618,-500.0,0.00011955,2]
[380324606,1755678643627,-514.0,0.00011955,2]
[380324608,1755678643637,-1680.0,0.00011955,2]
[380324610,1755678643646,-155.07,0.0001199,2]
[380324612,1755678643656,-300.13387166,0.000121,2]
[380324614,1755678643665,-500.0,0.000121,2]
[380324616,1755678643674,-500.0,0.000121,2]
[380324618,1755678643683,-500.0,0.000121,2]
[380324620,1755678643693,-500.2337693,0.000121,2]
[380324622,1755678643702,-500.0,0.000121,2]
[380324624,1755678643711,-500.0,0.000121,2]
[380324626,1755678643721,-500.0,0.000121,2]
[380324628,1755678643730,-163.8543106,0.000121,2]
[380324630,1755678643739,-500.0,0.000121,2]
[380324632,1755678643748,-359.96,0.00012122,2]
[380324634,1755678643757,-843.97594471,0.00012244,2]
[380324636,1755678643766,-458.46930693,0.00012245,2]
[380324638,1755678643776,-212.04014818,0.00012245,2]
[380324640,1755678643786,-160.0,0.00012255,2]
[380324642,1755678643796,-500.0,0.00012268,2]
[380324644,1755678643805,-281.80457,0.0001228,2]
[380324646,1755678643816,-200.0,0.000123,2]
[380324648,1755678643825,-2000.0,0.00012301,2]
[380324650,1755678643835,-200.0,0.00012301,2]
[380324652,1755678643844,-231.0,0.00012301,3]
[380324654,1755678643853,-718.16,0.0001234,2]
[380324656,1755678643863,-500.0,0.0001237,2]
[380324658,1755678643872,-500.0,0.0001237,2]
[380324660,1755678643882,-532.0,0.0001237,2]
[380324662,1755678643891,-150.0,0.0001237,2]
[380324664,1755678643901,-151.34190019,0.0001237,2]
[380324666,1755678643910,-747.0400157,0.00012392,2]
[380324668,1755678643920,-1078.9363044,0.00012392,2]
[380324670,1755678643929,-933.7729681,0.00012392,2]
[380324672,1755678643939,-151.0,0.000124,2]
[380324674,1755678643948,-1000.0,0.000124,2]
[380324676,1755678643957,-1000.0,0.000124,2]
[380324678,1755678643967,-1000.0,0.000124,2]
[380324680,1755678643976,-1000.0,0.000124,2]
[380324682,1755678643986,-1000.0,0.000124,2]
[380324684,1755678643996,-1000.0,0.000124,2]
[380324686,1755678644005,-1000.0,0.000124,2]
[380324688,1755678644015,-1000.0,0.000124,2]
[380324691,1755678644025,-1000.0,0.000124,2]
[380324693,1755678644035,-1000.0,0.000124,2]
[380324695,1755678644044,-1000.0,0.000124,2]
[380324697,1755678644053,-1000.0,0.000124,2]
[380324699,1755678644063,-1000.0,0.000124,2]
[380324701,1755678644072,-1000.0,0.000124,2]
[380324703,1755678644082,-1000.0,0.000124,2]
[380324705,1755678644091,-1000.0,0.000124,2]
[380324707,1755678644101,-1000.0,0.000124,2]
[380324709,1755678644110,-1000.0,0.000124,2]
[380324711,1755678644120,-1000.0,0.000124,2]
[380324713,1755678644130,-1000.0,0.000124,2]
[380324715,1755678644139,-1000.0,0.000124,2]
[380324717,1755678644148,-1000.0,0.000124,2]
[380324719,1755678644158,-1000.0,0.000124,2]
[380324721,1755678644167,-1000.0,0.000124,2]
[380324723,1755678644177,-1000.0,0.000124,2]
[380324725,1755678644186,-1000.0,0.000124,2]
[380324727,1755678644196,-1000.0,0.000124,2]
[380324729,1755678644206,-1000.0,0.000124,2]
[380324730,1755678644216,-438.95343372,0.000124,2]
[380324733,1755678644227,-1006.0,0.000124,2]
[380324735,1755678644236,-810.7206,0.000124,2]
[380324737,1755678644245,-196.2839,0.000124,2]
[380324738,1755678644255,-500.80308435,0.00012429,2]
[380324741,1755678644266,-500.0,0.00012429,2]
[380324743,1755678644275,-281.80457,0.0001244,2]
[380324745,1755678644285,-57193.79131256,0.00012456,2]
[380324747,1755678644294,-1085.0,0.00012458,2]
[380324749,1755678644304,-1000.0,0.00012496,2]
[380324751,1755678644313,-301.61151007,0.000125,2]
[380324753,1755678644322,-1000.0,0.000125,2]
[380324755,1755678644333,-194.98,0.0001252,2]
[380324757,1755678644342,-334.5472959,0.00012521,2]
[380324759,1755678644351,-160.0,0.00012521,2]
[380324761,1755678644360,-287.61899177,0.00012521,2]
[380324762,1755678644371,-11328.6343253,0.0001256,2]
[380324765,1755678644381,-9530.02,0.000126,7]
[380324766,1755678644391,-14276.57,0.000126,2]
[380324768,1755678644400,-500.0,0.00012644,2]
[380324770,1755678644413,-641.68108927,0.00012644,2]
[380324772,1755678644422,-532.0,0.00012644,2]
[380324774,1755678644432,-500.0,0.00012648,2]
[380324776,1755678644441,-1000.0,0.00012648,2]
[380324778,1755678644451,-281.80458,0.0001269,2]
[380324780,1755678644460,-166.94878602,0.000127,2]
[380324782,1755678644471,-3264.96,0.000128,2]
[380324784,1755678644481,-9530.02,0.000129,7]
[380324786,1755678644492,-150.0,0.000129,2]
[380324788,1755678644503,-500.0,0.00012918,2]
[380324790,1755678644512,-532.0,0.00012918,2]
[380324792,1755678644521,-152.76933963,0.00012932,2]
[380324794,1755678644530,-281.80457,0.0001294,2]
[380324796,1755678644540,-500.0,0.00012977,2]
[380324798,1755678644550,-3399.80155333,0.00013,2]
[380324800,1755678644559,-5000.0,0.00013,2]
[380324802,1755678644568,-810.7206,0.00013,2]
[380324804,1755678644585,-196.2839,0.00013,2]
[380324806,1755678644594,-433.0,0.00013052,2]
[380324808,1755678644603,-152.76933963,0.00013068,2]
[380324810,1755678644612,-1085.0,0.00013114,2]
[380324812,1755678644621,-520.72,0.00013119,2]
[380324814,1755678644631,-587.0,0.00013127,2]
[380324816,1755678644641,-2351.0,0.0001315,2]
[380324818,1755678644650,-301.35,0.0001316,2]
[380324820,1755678644660,-281.80457,0.0001319,2]
[380324822,1755678644669,-500.0,0.00013192,2]
[380324824,1755678644678,-532.0,0.00013192,2]
[380324826,1755678644687,-500.0,0.00013192,2]
[380324828,1755678644696,-500.0,0.00013196,2]
[380324830,1755678644705,-152.76933963,0.00013205,2]
[380324832,1755678644714,-57193.79131256,0.00013233,2]
[380324834,1755678644724,-9530.02,0.000133,7]
[380324836,1755678644733,-500.0,0.00013342,2]
[380324838,1755678644742,-11328.6343253,0.00013359,2]
[380324840,1755678644751,-520.72,0.00013393,2]
[380324842,1755678644760,-468.78,0.00013433,2]
[380324844,1755678644769,-798.85,0.00013433,2]
[380324846,1755678644779,-466.1,0.00013433,2]
[380324848,1755678644788,-798.85,0.00013433,2]
[380324850,1755678644798,-798.85,0.00013433,2]
[380324852,1755678644808,-798.85,0.00013433,2]
[380324854,1755678644818,-557.7,0.00013433,2]
[380324856,1755678644827,-500.0,0.00013434,2]
[380324858,1755678644837,-798.27,0.00013438,2]
[380324860,1755678644846,-468.84,0.00013438,2]
[380324862,1755678644855,-798.85,0.00013438,2]
[380324864,1755678644865,-798.85,0.00013438,2]
[380324866,1755678644874,-281.80458,0.0001344,2]
[380324868,1755678644884,-500.0,0.00013466,2]
[380324870,1755678644894,-532.0,0.00013466,2]
[380324872,1755678644903,-359.96,0.00013469,2]
[380324874,1755678644913,-2000.0,0.00013499,2]
[380324876,1755678644922,-155.4,0.00013499,2]
[380324878,1755678644931,-5000.03,0.000135,2]
[380324880,1755678644941,-1000.0,0.000135,2]
[380324882,1755678644951,-96288.43716335,0.000135,2]
[380324884,1755678644960,-370.81549713,0.000135,2]
[380324886,1755678644970,-520.72,0.00013667,2]
[380324888,1755678644979,-2000.0,0.00013698,2]
[380324890,1755678644988,-1000.0,0.00013698,2]
[380324892,1755678644997,-500.0,0.00013699,2]
[380324894,1755678645007,-500.0,0.00013699,2]
[380324896,1755678645017,-500.0,0.00013699,2]
[380324898,1755678645035,-500.0,0.00013699,2]
[380324901,1755678645044,-864.87442634,0.00013699,2]
[380324903,1755678645054,-200.0,0.00013699,2]
[380324905,1755678645064,-200.0,0.00013699,2]
[380324907,1755678645073,-200.0,0.00013699,2]
[380324909,1755678645082,-200.0,0.00013699,2]
[380324911,1755678645091,-200.0,0.00013699,2]
[380324913,1755678645101,-200.0,0.00013699,2]
[380324915,1755678645111,-157.49358,0.00013699,2]
[380324917,1755678645120,-1000.0,0.00013699,2]
[380324952,1755678645450,-1000.0,0.00013699,2]
[380324954,1755678645461,-1000.0,0.00013699,2]
[380324956,1755678645471,-1000.0,0.00013699,2]
[380324958,1755678645493,-200.0,0.00013699,2]
[380324960,1755678645505,-1000.0,0.00013699,2]
[380324962,1755678645514,-1000.0,0.00013699,2]
[380324964,1755678645524,-6314.89,0.00013699,2]
[380324966,1755678645533,-1000.0,0.00013699,2]
[380324968,1755678645543,-1000.0,0.00013699,2]
[380324970,1755678645552,-1000.0,0.00013699,2]
[380324972,1755678645561,-1000.0,0.00013699,2]
[380324974,1755678645571,-1000.0,0.00013699,2]
[380324977,1755678645581,-1000.0,0.00013699,2]
[380324979,1755678645591,-1000.0,0.00013699,2]
[380324981,1755678645601,-1000.0,0.00013699,2]
[380324983,1755678645611,-1000.0,0.00013699,2]
[380324985,1755678645620,-1000.0,0.00013699,2]
[380324987,1755678645629,-610.0,0.00013699,2]
[380324989,1755678645639,-1000.0,0.00013699,2]
[380324990,1755678645650,-1000.0,0.00013699,2]
[380324993,1755678645660,-1000.0,0.00013699,2]
[380324995,1755678645670,-1000.0,0.00013699,2]
[380324996,1755678645679,-1000.0,0.00013699,2]
[380324997,1755678645688,-1026.0,0.00013699,2]
[380324998,1755678645697,-1000.0,0.00013699,2]
[380324999,1755678645710,-1000.0,0.00013699,2]
[380325000,1755678645720,-1000.0,0.00013699,2]
[380325001,1755678645729,-1000.0,0.00013699,2]
[380325002,1755678645738,-1000.0,0.00013699,2]
[380325003,1755678645748,-5526.83,0.00013699,2]
[380325004,1755678645758,-1000.0,0.00013699,2]
[380325005,1755678645767,-365.64,0.00013699,2]
[380325007,1755678645777,-304.7,0.00013699,2]
[380325010,1755678645788,-253.91,0.00013699,2]
[380325011,1755678645807,-211.6,0.00013699,2]
[380325013,1755678645816,-176.33,0.00013699,2]
[380325015,1755678645826,-881.67,0.00013699,2]
[380325017,1755678645835,-1000.0,0.00013699,2]
[380325019,1755678645844,-1000.0,0.00013699,2]
[380325021,1755678645853,-1000.0,0.00013699,2]
[380325023,1755678645862,-1000.0,0.00013699,2]
[380325025,1755678645871,-464.0,0.00013699,2]
[380325027,1755678645880,-1000.0,0.00013699,2]
[380325029,1755678645890,-154.0,0.00013699,2]
[380325031,1755678645899,-154.0,0.00013699,2]
[380325033,1755678645908,-154.0,0.00013699,2]
[380325035,1755678645918,-154.0,0.00013699,2]
[380325037,1755678645927,-154.0,0.00013699,2]
[380325039,1755678645936,-154.0,0.00013699,2]
[380325041,1755678645946,-154.0,0.00013699,2]
[380325043,1755678645955,-154.0,0.00013699,2]
[380325045,1755678645965,-154.0,0.00013699,2]
[380325047,1755678645975,-154.0,0.00013699,2]
[380325049,1755678645984,-154.0,0.00013699,2]
[380325051,1755678645993,-154.0,0.00013699,2]
[380325053,1755678646003,-154.0,0.00013699,2]
[380325055,1755678646013,-154.0,0.00013699,2]
[380325057,1755678646022,-154.0,0.00013699,2]
[380325059,1755678646031,-154.0,0.00013699,2]
[380325061,1755678646041,-338.25452382,0.00013699,2]
[380325063,1755678646050,-338.25452382,0.00013699,2]
[380325065,1755678646060,-2000.0,0.00013699,2]
[380325067,1755678646069,-1000.0,0.00013699,2]
[380325069,1755678646078,-300.0,0.00013699,2]
[380325071,1755678646088,-150.0,0.00013699,2]
[380325073,1755678646098,-9530.02,0.000137,7]
[380325075,1755678646107,-5000.0,0.000137,2]
[380325078,1755678646116,-2000.0,0.000137,2]
[380325081,1755678646126,-2000.0,0.000137,2]
[380325083,1755678646139,-2000.0,0.000137,2]
[380325085,1755678646149,-1071.0,0.00013739,2]
[380325087,1755678646159,-500.0,0.0001374,2]
[380325089,1755678646168,-532.0,0.0001374,2]
[380325091,1755678646178,-194.98,0.00013771,2]
[380325093,1755678646188,-554.0,0.000138,2]
[380325095,1755678646197,-1085.0,0.00013804,2]
[380325097,1755678646207,-1000.0,0.00013885,2]
[380325099,1755678646217,-483.67317237,0.0001389,2]
[380325101,1755678646227,-160.0,0.0001389,2]
[380325103,1755678646237,-298.26089446,0.0001389,2]
[380325105,1755678646247,-2000.0,0.00013899,2]
[380325107,1755678646257,-1000.0,0.00013899,2]
[380325109,1755678646267,-520.72,0.00013941,2]
[380325111,1755678646277,-300.0,0.00013973,2]
[380325114,1755678646287,-5000.0,0.00014,2]
[380325116,1755678646297,-13847.8071158,0.00014,3]
[380325117,1755678646307,-500.0,0.00014,3]
[380325119,1755678646316,-14276.57,0.00014,2]
[380325121,1755678646326,-57193.79131256,0.00014011,2]
[380325124,1755678646336,-500.0,0.00014014,2]
[380325126,1755678646345,-532.0,0.00014014,2]
[380325127,1755678646355,-151.0,0.0001402,2]
[380325130,1755678646364,-151.0,0.00014023,2]
[380325131,1755678646374,-151.0,0.00014029,2]
[380325133,1755678646383,-151.0,0.00014033,2]
[380325135,1755678646392,-420.11568402,0.00014055,2]
[380325138,1755678646403,-150.0,0.0001408,2]
[380325140,1755678646417,-420.11568402,0.0001411,2]
[380325142,1755678646427,-150.0,0.00014119,2]
[380325144,1755678646436,-11328.6343253,0.00014157,2]
[380325146,1755678646446,-894.0,0.00014159,2]
[380325148,1755678646457,-4152.0,0.00014159,2]
[380325150,1755678646466,-574.462,0.00014159,2]
[380325152,1755678646475,-420.11568402,0.00014164,2]
[380325154,1755678646485,-520.72,0.00014215,2]
[380325156,1755678646494,-420.11568402,0.00014219,2]
[380325158,1755678646504,-300.0,0.00014247,2]
[380325160,1755678646513,-420.11568402,0.00014274,2]
[380325162,1755678646522,-500.0,0.00014288,2]
[380325164,1755678646531,-532.0,0.00014288,2]
[380325166,1755678646541,-17567.01431541,0.0001429,7]
[380325168,1755678646551,-736.0,0.00014313,2]
[380325170,1755678646561,-420.11568402,0.00014329,2]
[380325172,1755678646571,-155.07,0.00014364,2]
[380325174,1755678646580,-420.11568402,0.00014384,2]
[380325176,1755678646590,-5526.83,0.00014384,2]
[380325178,1755678646599,-200.0,0.00014424,2]
[380325180,1755678646608,-823.0,0.00014427,2]
[380325182,1755678646617,-420.11568402,0.00014438,2]
[380325184,1755678646627,-3292.0,0.00014465,2]
[380325186,1755678646636,-169.60282869,0.00014487,9]
[380325188,1755678646645,-520.72,0.00014489,2]
[380325190,1755678646655,-420.11568402,0.00014493,2]
[380325192,1755678646664,-175.0,0.00014493,3]
[380325194,1755678646673,-1085.0,0.00014494,2]
[380325196,1755678646682,-166.94878602,0.000145,2]
[380325198,1755678646691,-300.0,0.00014521,2]
[380325200,1755678646700,-420.11568402,0.00014548,2]
[380325202,1755678646710,-500.0,0.00014562,2]
[380325204,1755678646719,-532.0,0.00014562,2]
[380325206,1755678646728,-420.11568402,0.00014603,2]
[380325208,1755678646737,-420.11568402,0.00014658,2]
[380325210,1755678646747,-8000.0,0.00014748,2]
[380325212,1755678646755,-520.72,0.00014763,2]
[380325214,1755678646765,-57193.79131256,0.00014789,2]
[380325216,1755678646774,-300.0,0.00014795,2]
[380325218,1755678646783,-500.0,0.00014797,2]
[380325219,1755678646792,-1000.0,0.0001481,2]
[380325221,1755678646807,-359.96,0.00014815,2]
[380325223,1755678646817,-500.0,0.00014836,2]
[380325225,1755678646826,-532.0,0.00014836,2]
[380325227,1755678646836,-2010.1443,0.00014899,2]
[380325229,1755678646845,-1000.0,0.00014899,2]
[380325230,1755678646854,-613.63724568,0.00014923,2]
[380325232,1755678646863,-11328.6343253,0.00014956,2]
[380325234,1755678646873,-5000.0,0.00015,2]
[380325236,1755678646882,-150.87376898,0.00015,10]
[380325237,1755678646892,-500.0,0.00015,3]
[380325239,1755678646901,-500.0,0.00015,2]
[380325241,1755678646910,-250.0,0.00015,2]
[380325243,1755678646920,-194.98,0.00015023,2]
[380325244,1755678646929,-520.72,0.00015036,2]
[380325246,1755678646939,-180.0,0.00015056,2]
[380325248,1755678646949,-300.0,0.00015068,2]
[380325250,1755678646959,-5526.83,0.00015068,2]
[380325252,1755678646969,-300.0,0.00015069,2]
[380325253,1755678646979,-507.38178573,0.00015085,7]
[380325255,1755678646988,-507.38178573,0.00015085,7]
[380325257,1755678646998,-500.0,0.0001511,2]
[380325259,1755678647007,-532.0,0.0001511,2]
[380325261,1755678647017,-1085.0,0.00015219,2]
[380325262,1755678647026,-160.0,0.00015259,2]
[380325264,1755678647036,-309.29654756,0.00015259,2]
[380325266,1755678647046,-150.0,0.0001527,2]
[380325268,1755678647056,-1000.0,0.00015273,2]
[380325270,1755678647065,-169.60282869,0.00015275,10]
[380325272,1755678647075,-1517.64,0.000153,2]
[380325273,1755678647084,-520.72,0.0001531,2]
[380325275,1755678647094,-300.0,0.00015343,2]
[380325277,1755678647103,-500.0,0.00015384,2]
[380325279,1755678647113,-532.0,0.00015384,2]
[380325280,1755678647122,-16365.66477888,0.000154,2]
[380325282,1755678647132,-497.72193156,0.000154,2]
[380325284,1755678647141,-14276.57,0.000154,2]
[380325286,1755678647150,-155.07,0.00015522,2]
[380325287,1755678647159,-468.84,0.00015553,2]
[380325289,1755678647168,-468.84,0.00015553,2]
[380325291,1755678647178,-1597.26,0.00015553,2]
[380325293,1755678647187,-468.45,0.00015553,2]
[380325295,1755678647197,-57193.79131256,0.00015567,2]
[380325297,1755678647206,-520.72,0.00015584,2]
[380325298,1755678647216,-300.0,0.00015617,2]
[380325300,1755678647226,-500.0,0.00015658,2]
[380325302,1755678647235,-532.0,0.00015658,2]
[380325304,1755678647244,-1252.0,0.00015683,2]
[380325305,1755678647255,-347.08,0.00015691,2]
[380325307,1755678647264,-408.27,0.00015691,2]
[380325309,1755678647274,-5526.83,0.00015753,2]
[380325311,1755678647283,-11328.6343253,0.00015754,2]
[380325313,1755678647292,-1152.0,0.00015856,2]
[380325314,1755678647302,-520.72,0.00015858,2]
[380325316,1755678647311,-3267.8210922,0.00015872,2]
[380325318,1755678647320,-395.31822124,0.00015891,2]
[380325320,1755678647330,-3221.0,0.00015912,2]
[380325322,1755678647339,-500.0,0.00015932,2]
[380325324,1755678647349,-532.0,0.00015932,2]
[380325325,1755678647358,-1085.0,0.0001598,2]
[380325327,1755678647367,-9530.02,0.00016,7]
[380325329,1755678647376,-522.74177217,0.00016,2]
[380325332,1755678647393,-500.0,0.00016,3]
[380325334,1755678647414,-458.46930693,0.00016,3]
[380325337,1755678647431,-212.04014818,0.00016,3]
[380325340,1755678647450,-385.324241,0.00016,2]
[380325342,1755678647466,-169.60282869,0.00016063,12]
[380325345,1755678647484,-613.63724564,0.00016086,2]
[380325347,1755678647502,-9999.99,0.00016116,2]
[380325350,1755678647519,-520.72,0.00016132,2]
[380325353,1755678647538,-359.96,0.00016162,2]
[380325355,1755678647556,-150.0,0.000162,2]
[380325358,1755678647574,-500.0,0.00016206,2]
[380325360,1755678647588,-532.0,0.00016206,2]
[380325363,1755678647606,-500.0,0.00016268,2]
[380325365,1755678647621,-500.0,0.00016268,2]
[380325368,1755678647640,-500.0,0.00016268,2]